[Event "*** SCC Grand Prix: Titled Tuesday Blitz"]
[Site "Chess.com"]
[Date "2020.09.29"]
[Round "10"]
[White "Zemerovv"]
[Black "Rubinstein_Akiba"]
[Result "0-1"]
[WhiteElo "2286"]
[BlackElo "2384"]
[TimeControl "180+1"]
[EndTime "11:55:58 PDT"]
[Termination "Rubinstein_Akiba won by resignation"]

1. g3 {[%clk 0:03:00.9]} 1... d5 {[%clk 0:02:58.2]} 2. Bg2 {[%clk 0:03:00.6]}
2... e5 {[%clk 0:02:58.6]} 3. d3 {[%clk 0:03:00.4]} 3... Nf6 {[%clk 0:02:58.8]}
4. h3 {[%clk 0:02:59.1]} 4... Be7 {[%clk 0:02:58.8]} 5. e3 {[%clk 0:02:59]} 5...
O-O {[%clk 0:02:58.4]} 6. Ne2 {[%clk 0:02:59.9]} 6... Be6 {[%clk 0:02:58.6]} 7.
g4 {[%clk 0:02:59.7]} 7... Qd7 {[%clk 0:02:56.7]} 8. Ng3 {[%clk 0:02:59.3]} 8...
c5 {[%clk 0:02:53.7]} 9. Nd2 {[%clk 0:02:58.7]} 9... Nc6 {[%clk 0:02:52.5]} 10.
b3 {[%clk 0:02:58.1]} 10... a5 {[%clk 0:02:50.8]} 11. a4 {[%clk 0:02:56.5]}
11... Ne8 {[%clk 0:02:49.1]} 12. Bb2 {[%clk 0:02:54]} 12... Nd6 {[%clk
0:02:47.8]} 13. Nh5 {[%clk 0:02:51.5]} 13... g6 {[%clk 0:02:41.6]} 14. Ng3
{[%clk 0:02:47.5]} 14... Bh4 {[%clk 0:02:38.7]} 15. Nf3 {[%clk 0:02:45.1]} 15...
Bxg3 {[%clk 0:02:38]} 16. fxg3 {[%clk 0:02:45]} 16... e4 {[%clk 0:02:38.9]} 17.
Ng5 {[%clk 0:02:36.6]} 17... Qe7 {[%clk 0:02:25.5]} 18. h4 {[%clk 0:02:28.6]}
18... f6 {[%clk 0:02:23]} 19. Nxe6 {[%clk 0:02:13.1]} 19... Qxe6 {[%clk
0:02:23.9]} 20. dxe4 {[%clk 0:02:07.9]} 20... Nxe4 {[%clk 0:02:19.5]} 21. Qf3
{[%clk 0:02:03.9]} 21... Nb4 {[%clk 0:02:08.7]} 22. Rc1 {[%clk 0:02:01.5]} 22...
Na2 {[%clk 0:02:01.2]} 23. Rd1 {[%clk 0:01:56.1]} 23... Nb4 {[%clk 0:01:53.8]}
24. O-O {[%clk 0:01:39.7]} 24... Nxc2 {[%clk 0:01:51.8]} 25. h5 {[%clk
0:01:37.9]} 25... Rad8 {[%clk 0:01:45.5]} 26. h6 {[%clk 0:01:34.8]} 26... Ng5
{[%clk 0:01:41.8]} 27. Qf2 {[%clk 0:01:07]} 27... Nxe3 {[%clk 0:01:40.4]} 28.
Rfe1 {[%clk 0:00:52.3]} 28... Nxd1 {[%clk 0:01:27.6]} 29. Rxd1 {[%clk
0:00:44.3]} 29... Ne4 {[%clk 0:01:26.1]} 30. Qf4 {[%clk 0:00:34.4]} 30... Ng5
{[%clk 0:00:54.1]} 31. Qc7 {[%clk 0:00:30.9]} 31... Rd7 {[%clk 0:00:38.5]} 32.
Qxa5 {[%clk 0:00:30.1]} 32... Qxg4 {[%clk 0:00:35.7]} 33. Qxc5 {[%clk
0:00:27.6]} 33... Qxd1+ {[%clk 0:00:33.4]} 34. Kh2 {[%clk 0:00:27.5]} 34... Nf3+
{[%clk 0:00:28.6]} 35. Kh3 {[%clk 0:00:20.7]} 35... Ng5+ {[%clk 0:00:24.6]} 36.
Kh2 {[%clk 0:00:19.1]} 36... Qh5+ {[%clk 0:00:19.8]} 37. Kg1 {[%clk 0:00:18.9]}
37... Nf3+ {[%clk 0:00:19]} 38. Kf2 {[%clk 0:00:18.5]} 38... Ne5 {[%clk
0:00:17.7]} 39. Bxd5+ {[%clk 0:00:17.9]} 39... Nf7 {[%clk 0:00:15.7]} 40. Bxf6
{[%clk 0:00:16]} 40... Qf5+ {[%clk 0:00:15.2]} 41. Kg2 {[%clk 0:00:13.6]} 41...
Qxd5+ {[%clk 0:00:15]} 42. Qxd5 {[%clk 0:00:12.8]} 42... Rxd5 {[%clk 0:00:15.9]}
0-1

[Event "*** SCC Grand Prix: Titled Tuesday Blitz"]
[Site "Chess.com"]
[Date "2020.09.29"]
[Round "10"]
[White "kai_nov"]
[Black "Miss_JJ20"]
[Result "0-1"]
[WhiteElo "2284"]
[BlackElo "2463"]
[TimeControl "180+1"]
[EndTime "11:56:00 PDT"]
[Termination "Miss_JJ20 won by checkmate"]

1. d4 {[%clk 0:03:00.9]} 1... Nf6 {[%clk 0:02:57.4]} 2. c4 {[%clk 0:03:00.4]}
2... e6 {[%clk 0:02:57.4]} 3. Nc3 {[%clk 0:03:00.3]} 3... Bb4 {[%clk 0:02:57.5]}
4. f3 {[%clk 0:03:00]} 4... d5 {[%clk 0:02:56.8]} 5. a3 {[%clk 0:02:59.3]} 5...
Bxc3+ {[%clk 0:02:56.6]} 6. bxc3 {[%clk 0:02:59.1]} 6... c5 {[%clk 0:02:55.3]}
7. e3 {[%clk 0:02:58.6]} 7... O-O {[%clk 0:02:53]} 8. cxd5 {[%clk 0:02:57.6]}
8... Nxd5 {[%clk 0:02:53.9]} 9. Bd2 {[%clk 0:02:57.1]} 9... Nc6 {[%clk
0:02:42.9]} 10. f4 {[%clk 0:02:54.6]} 10... cxd4 {[%clk 0:02:16]} 11. cxd4
{[%clk 0:02:54]} 11... b6 {[%clk 0:01:50.5]} 12. Nf3 {[%clk 0:02:52.8]} 12...
Bb7 {[%clk 0:01:50.9]} 13. Bd3 {[%clk 0:02:51.6]} 13... h6 {[%clk 0:01:43.2]}
14. O-O {[%clk 0:02:50.9]} 14... Rc8 {[%clk 0:01:42.7]} 15. Qe2 {[%clk
0:02:43.1]} 15... Nf6 {[%clk 0:01:42.3]} 16. f5 {[%clk 0:02:18.1]} 16... exf5
{[%clk 0:01:20.7]} 17. Bxf5 {[%clk 0:02:18.1]} 17... Rc7 {[%clk 0:01:21.3]} 18.
Rac1 {[%clk 0:02:10.5]} 18... Re8 {[%clk 0:01:20.2]} 19. Qd3 {[%clk 0:01:29.5]}
19... Qd5 {[%clk 0:00:58.8]} 20. Be1 {[%clk 0:00:29.6]} 20... Rce7 {[%clk
0:00:57.8]} 21. Bf2 {[%clk 0:00:24.3]} 21... Na5 {[%clk 0:00:49.2]} 22. Rfe1
{[%clk 0:00:22.3]} 22... Ne4 {[%clk 0:00:44.6]} 23. Bxe4 {[%clk 0:00:16.1]}
23... Rxe4 {[%clk 0:00:45.5]} 24. Bg3 {[%clk 0:00:15.1]} 24... Nc6 {[%clk
0:00:28.2]} 25. h3 {[%clk 0:00:13.8]} 25... Ne7 {[%clk 0:00:27.8]} 26. Kh2
{[%clk 0:00:13.5]} 26... Nf5 {[%clk 0:00:27.7]} 27. Bf4 {[%clk 0:00:13.2]} 27...
g5 {[%clk 0:00:24.5]} 28. Be5 {[%clk 0:00:12.4]} 28... R4xe5 {[%clk 0:00:20.6]}
29. e4 {[%clk 0:00:10.3]} 29... Rxe4 {[%clk 0:00:20.5]} 30. Rxe4 {[%clk
0:00:09.7]} 30... Rxe4 {[%clk 0:00:19.5]} 31. Rc7 {[%clk 0:00:09.3]} 31... Qd6+
{[%clk 0:00:18.7]} 32. Kh1 {[%clk 0:00:08.3]} 32... Qxc7 {[%clk 0:00:18.6]} 33.
d5 {[%clk 0:00:08.7]} 33... Qc1+ {[%clk 0:00:17.5]} 34. Kh2 {[%clk 0:00:09.2]}
34... Qf4+ {[%clk 0:00:17.6]} 35. Kh1 {[%clk 0:00:09.5]} 35... Ng3+ {[%clk
0:00:17.5]} 36. Kg1 {[%clk 0:00:09.1]} 36... Ne2+ {[%clk 0:00:16.3]} 37. Kf2
{[%clk 0:00:09.2]} 37... Qg3+ {[%clk 0:00:13.2]} 38. Kf1 {[%clk 0:00:08.7]}
38... Re8 {[%clk 0:00:06.6]} 39. d6 {[%clk 0:00:08.3]} 39... Nf4 {[%clk
0:00:06.6]} 40. d7 {[%clk 0:00:07.5]} 40... Qxg2# {[%clk 0:00:05.4]} 0-1

[Event "*** SCC Grand Prix: Titled Tuesday Blitz"]
[Site "Chess.com"]
[Date "2020.09.29"]
[Round "10"]
[White "jacky72"]
[Black "kreonx"]
[Result "1-0"]
[WhiteElo "2574"]
[BlackElo "2353"]
[TimeControl "180+1"]
[EndTime "11:56:03 PDT"]
[Termination "jacky72 won on time"]

1. e3 {[%clk 0:03:00.9]} 1... c6 {[%clk 0:02:58.6]} 2. Qe2 {[%clk 0:03:01.8]}
2... d5 {[%clk 0:02:58.6]} 3. Kd1 {[%clk 0:03:02.7]} 3... e5 {[%clk 0:02:57.6]}
4. Qe1 {[%clk 0:03:03.6]} 4... f5 {[%clk 0:02:55.8]} 5. d4 {[%clk 0:02:57.5]}
5... exd4 {[%clk 0:02:48.2]} 6. exd4+ {[%clk 0:02:57.3]} 6... Be7 {[%clk
0:02:42]} 7. Nf3 {[%clk 0:02:57]} 7... Nf6 {[%clk 0:02:41.1]} 8. Bd3 {[%clk
0:02:57.2]} 8... O-O {[%clk 0:02:40.5]} 9. Bg5 {[%clk 0:02:57.3]} 9... Re8
{[%clk 0:02:39.9]} 10. Ne5 {[%clk 0:02:55]} 10... Ne4 {[%clk 0:02:39.7]} 11.
Bxe7 {[%clk 0:02:54.3]} 11... Qxe7 {[%clk 0:02:36.9]} 12. f3 {[%clk 0:02:54.1]}
12... Nd6 {[%clk 0:02:36]} 13. c3 {[%clk 0:02:52.6]} 13... Nd7 {[%clk
0:02:30.7]} 14. Nxd7 {[%clk 0:02:49.2]} 14... Qxd7 {[%clk 0:02:27.4]} 15. Qh4
{[%clk 0:02:41.7]} 15... Qf7 {[%clk 0:02:22.4]} 16. Nd2 {[%clk 0:02:40]} 16...
h6 {[%clk 0:02:12.8]} 17. Kc2 {[%clk 0:02:38.5]} 17... f4 {[%clk 0:02:09.3]} 18.
g4 {[%clk 0:02:33.7]} 18... fxg3 {[%clk 0:02:02.1]} 19. hxg3 {[%clk 0:02:34.6]}
19... Bf5 {[%clk 0:01:57.1]} 20. Bxf5 {[%clk 0:02:10.9]} 20... Nxf5 {[%clk
0:01:27.5]} 21. Qf4 {[%clk 0:02:04.5]} 21... Ne3+ {[%clk 0:01:25.6]} 22. Kb3
{[%clk 0:02:04.6]} 22... Qxf4 {[%clk 0:01:20.1]} 23. gxf4 {[%clk 0:02:05.5]}
23... Kf7 {[%clk 0:01:08.6]} 24. Rag1 {[%clk 0:01:58.7]} 24... Nf5 {[%clk
0:01:01.7]} 25. Nf1 {[%clk 0:01:57]} 25... Re2 {[%clk 0:00:55.7]} 26. Ng3 {[%clk
0:01:56.2]} 26... Nxg3 {[%clk 0:00:39.5]} 27. Rxg3 {[%clk 0:01:57.1]} 27... Re6
{[%clk 0:00:32.1]} 28. Rhg1 {[%clk 0:01:53.7]} 28... Rg8 {[%clk 0:00:31.6]} 29.
Kc2 {[%clk 0:01:51.4]} 29... Rf6 {[%clk 0:00:31.4]} 30. Rg4 {[%clk 0:01:51.9]}
30... g6 {[%clk 0:00:22.9]} 31. Rh1 {[%clk 0:01:50.6]} 31... h5 {[%clk
0:00:21.3]} 32. Rgh4 {[%clk 0:01:50.6]} 32... Re8 {[%clk 0:00:21.3]} 33. R1h2
{[%clk 0:01:51]} 33... Re3 {[%clk 0:00:20.6]} 34. Rf2 {[%clk 0:01:51.6]} 34...
Rf5 {[%clk 0:00:19.8]} 35. Kd2 {[%clk 0:01:51]} 35... Re8 {[%clk 0:00:19.2]} 36.
b3 {[%clk 0:01:51.1]} 36... b5 {[%clk 0:00:18.5]} 37. Rg2 {[%clk 0:01:50]} 37...
Kf6 {[%clk 0:00:17.2]} 38. Rg1 {[%clk 0:01:48.7]} 38... Kf7 {[%clk 0:00:17.1]}
39. Rg5 {[%clk 0:01:48.3]} 39... Kf6 {[%clk 0:00:14.4]} 40. Rg1 {[%clk
0:01:48.3]} 40... Re6 {[%clk 0:00:14.4]} 41. Ra1 {[%clk 0:01:47.9]} 41... a5
{[%clk 0:00:12.7]} 42. a4 {[%clk 0:01:47.8]} 42... b4 {[%clk 0:00:12.2]} 43.
cxb4 {[%clk 0:01:47.8]} 43... axb4 {[%clk 0:00:13.1]} 44. a5 {[%clk 0:01:48.7]}
44... Re8 {[%clk 0:00:12.8]} 45. a6 {[%clk 0:01:48.5]} 45... Ra8 {[%clk
0:00:13.3]} 46. a7 {[%clk 0:01:47.3]} 46... Ke6 {[%clk 0:00:13.7]} 47. Ra6
{[%clk 0:01:45.8]} 47... Kd6 {[%clk 0:00:13.7]} 48. Ke3 {[%clk 0:01:41.7]} 48...
Rf6 {[%clk 0:00:13.9]} 49. Rh1 {[%clk 0:01:41.8]} 49... Kc7 {[%clk 0:00:14]} 50.
Rha1 {[%clk 0:01:40]} 50... Re8+ {[%clk 0:00:10.6]} 51. Kf2 {[%clk 0:01:38.3]}
51... Ra8 {[%clk 0:00:11.5]} 52. R6a4 {[%clk 0:01:37.7]} 52... Rxf4 {[%clk
0:00:10.9]} 53. Rxb4 {[%clk 0:01:37.5]} 53... c5 {[%clk 0:00:10.4]} 54. Rc1
{[%clk 0:01:33.2]} 54... Rxa7 {[%clk 0:00:06.8]} 55. Rxc5+ {[%clk 0:01:34.1]}
55... Kd6 {[%clk 0:00:05.8]} 56. Rb6+ {[%clk 0:01:33.9]} 56... Ke7 {[%clk
0:00:06]} 57. Rxd5 {[%clk 0:01:32]} 57... Kf7 {[%clk 0:00:05.2]} 58. Rdd6 {[%clk
0:01:30.5]} 58... g5 {[%clk 0:00:03.7]} 59. Rh6 {[%clk 0:01:30.5]} 59... Re7
{[%clk 0:00:03.5]} 60. Rxh5 {[%clk 0:01:28.1]} 60... g4 {[%clk 0:00:03.8]} 61.
Kg3 {[%clk 0:01:26.5]} 61... Rxf3+ {[%clk 0:00:03.3]} 62. Kxg4 {[%clk
0:01:26.2]} 62... Rd3 {[%clk 0:00:03.8]} 63. Rh7+ {[%clk 0:01:25.3]} 63... Ke8
{[%clk 0:00:03.2]} 64. Rb8+ {[%clk 0:01:25.1]} 64... Kd7 {[%clk 0:00:02.8]} 65.
Rb7+ {[%clk 0:01:26]} 65... Kc6 {[%clk 0:00:02.7]} 66. Rhxe7 {[%clk 0:01:26.9]}
66... Rxd4+ {[%clk 0:00:02.7]} 67. Kf5 {[%clk 0:01:27.8]} 67... Rd5+ {[%clk
0:00:02]} 68. Ke4 {[%clk 0:01:28]} 68... Rd1 {[%clk 0:00:01.6]} 69. Rec7+ {[%clk
0:01:27.2]} 69... Kd6 {[%clk 0:00:01.5]} 70. Rd7+ {[%clk 0:01:28.1]} 1-0

[Event "*** SCC Grand Prix: Titled Tuesday Blitz"]
[Site "Chess.com"]
[Date "2020.09.29"]
[Round "10"]
[White "teacher4chess"]
[Black "VladaSviridova"]
[Result "0-1"]
[WhiteElo "1988"]
[BlackElo "2216"]
[TimeControl "180+1"]
[EndTime "11:56:03 PDT"]
[Termination "VladaSviridova won by checkmate"]

1. d4 {[%clk 0:02:59.9]} 1... d5 {[%clk 0:02:59.9]} 2. Nf3 {[%clk 0:02:58.9]}
2... Nf6 {[%clk 0:02:59.2]} 3. c4 {[%clk 0:02:58.6]} 3... c6 {[%clk 0:02:59.2]}
4. e3 {[%clk 0:02:58.2]} 4... Bf5 {[%clk 0:02:58.2]} 5. Bd3 {[%clk 0:02:57]}
5... Bxd3 {[%clk 0:02:57.6]} 6. Qxd3 {[%clk 0:02:57.1]} 6... e6 {[%clk
0:02:57.4]} 7. O-O {[%clk 0:02:56.5]} 7... Nbd7 {[%clk 0:02:55.9]} 8. a3 {[%clk
0:02:52]} 8... dxc4 {[%clk 0:02:46.5]} 9. Qxc4 {[%clk 0:02:51.5]} 9... Bd6
{[%clk 0:02:46.5]} 10. Nc3 {[%clk 0:02:50]} 10... O-O {[%clk 0:02:45.6]} 11. e4
{[%clk 0:02:48]} 11... e5 {[%clk 0:02:45.1]} 12. Rd1 {[%clk 0:02:25.9]} 12...
Qc7 {[%clk 0:02:28]} 13. d5 {[%clk 0:02:16.1]} 13... cxd5 {[%clk 0:02:19.1]} 14.
Qxc7 {[%clk 0:02:15.1]} 14... Bxc7 {[%clk 0:02:19]} 15. Nxd5 {[%clk 0:02:13.4]}
15... Nxd5 {[%clk 0:02:17.8]} 16. exd5 {[%clk 0:02:00.7]} 16... Bd6 {[%clk
0:02:03.1]} 17. Be3 {[%clk 0:01:53.2]} 17... a5 {[%clk 0:01:55.2]} 18. Rac1
{[%clk 0:01:51.6]} 18... Rac8 {[%clk 0:01:52.5]} 19. g4 {[%clk 0:01:47.5]} 19...
b5 {[%clk 0:01:47]} 20. Rc6 {[%clk 0:01:44]} 20... Bb8 {[%clk 0:01:34.7]} 21.
Rdc1 {[%clk 0:01:43.6]} 21... Rcd8 {[%clk 0:01:14]} 22. Ra6 {[%clk 0:01:28.9]}
22... a4 {[%clk 0:01:10.7]} 23. d6 {[%clk 0:01:24.9]} 23... Nf6 {[%clk
0:01:01.7]} 24. Rcc6 {[%clk 0:01:04.7]} 24... Nxg4 {[%clk 0:00:56.3]} 25. Bg5
{[%clk 0:00:46.5]} 25... f6 {[%clk 0:00:54.2]} 26. Bd2 {[%clk 0:00:42.9]} 26...
Kf7 {[%clk 0:00:46.6]} 27. Ba5 {[%clk 0:00:38.5]} 27... Rd7 {[%clk 0:00:45.1]}
28. Rab6 {[%clk 0:00:38]} 28... Nh6 {[%clk 0:00:41.5]} 29. Rxb5 {[%clk 0:00:35]}
29... Rxd6 {[%clk 0:00:38.1]} 30. Rb7+ {[%clk 0:00:31.4]} 30... Ke6 {[%clk
0:00:33.1]} 31. Rxd6+ {[%clk 0:00:30.7]} 31... Bxd6 {[%clk 0:00:33.2]} 32. Rxg7
{[%clk 0:00:30.1]} 32... Nf5 {[%clk 0:00:32.8]} 33. Rxh7 {[%clk 0:00:29.3]}
33... Rg8+ {[%clk 0:00:31.6]} 34. Kf1 {[%clk 0:00:28.5]} 34... e4 {[%clk
0:00:30.9]} 35. Nh4 {[%clk 0:00:25.6]} 35... Nd4 {[%clk 0:00:23.4]} 36. Bc3
{[%clk 0:00:21.1]} 36... Be5 {[%clk 0:00:18]} 37. Ng2 {[%clk 0:00:17.8]} 37...
Nf3 {[%clk 0:00:16.1]} 38. Bxe5 {[%clk 0:00:15.9]} 38... Kxe5 {[%clk 0:00:16]}
39. Rh5+ {[%clk 0:00:15.1]} 39... f5 {[%clk 0:00:13]} 40. Ne3 {[%clk 0:00:13.6]}
40... Rg1+ {[%clk 0:00:12.8]} 41. Ke2 {[%clk 0:00:13.2]} 41... Re1# {[%clk
0:00:12.8]} 0-1

[Event "*** SCC Grand Prix: Titled Tuesday Blitz"]
[Site "Chess.com"]
[Date "2020.09.29"]
[Round "10"]
[White "Legendinunknown"]
[Black "TimofeevAr"]
[Result "0-1"]
[WhiteElo "2648"]
[BlackElo "2849"]
[TimeControl "180+1"]
[EndTime "11:56:04 PDT"]
[Termination "TimofeevAr won by resignation"]

1. d4 {[%clk 0:03:00.9]} 1... d5 {[%clk 0:02:59.1]} 2. c4 {[%clk 0:03:00.7]}
2... dxc4 {[%clk 0:02:59.3]} 3. e4 {[%clk 0:03:00.2]} 3... Nf6 {[%clk
0:02:57.6]} 4. e5 {[%clk 0:02:59.4]} 4... Nd5 {[%clk 0:02:57.8]} 5. Bxc4 {[%clk
0:02:58.8]} 5... Nc6 {[%clk 0:02:58]} 6. Ne2 {[%clk 0:02:56.4]} 6... Be6 {[%clk
0:02:51.4]} 7. Bb3 {[%clk 0:02:46.1]} 7... Qd7 {[%clk 0:02:49.2]} 8. Nbc3 {[%clk
0:02:45.7]} 8... Nxc3 {[%clk 0:02:40.1]} 9. bxc3 {[%clk 0:02:44.1]} 9... Bxb3
{[%clk 0:02:38.8]} 10. axb3 {[%clk 0:02:39.1]} 10... e6 {[%clk 0:02:38.6]} 11.
O-O {[%clk 0:02:37.9]} 11... Be7 {[%clk 0:02:38.5]} 12. Ng3 {[%clk 0:02:36.9]}
12... O-O {[%clk 0:02:19.2]} 13. Qg4 {[%clk 0:02:27.3]} 13... f5 {[%clk
0:02:18.9]} 14. exf6 {[%clk 0:02:26.5]} 14... Rxf6 {[%clk 0:01:43.7]} 15. Qe4
{[%clk 0:02:13.5]} 15... Qd5 {[%clk 0:01:39.8]} 16. Qxd5 {[%clk 0:02:02.6]}
16... exd5 {[%clk 0:01:39.1]} 17. Bg5 {[%clk 0:02:02.1]} 17... Re6 {[%clk
0:01:39.4]} 18. Bxe7 {[%clk 0:02:00.6]} 18... Nxe7 {[%clk 0:01:38.5]} 19. Rfd1
{[%clk 0:01:52.2]} 19... a5 {[%clk 0:01:34.4]} 20. c4 {[%clk 0:01:46.3]} 20...
Rb6 {[%clk 0:01:33.3]} 21. Ra3 {[%clk 0:01:35.3]} 21... Rb4 {[%clk 0:01:31.7]}
22. Rc1 {[%clk 0:01:15.5]} 22... c6 {[%clk 0:01:17.7]} 23. Kf1 {[%clk
0:01:09.7]} 23... a4 {[%clk 0:01:16.8]} 24. bxa4 {[%clk 0:00:53.9]} 24... Rxc4
{[%clk 0:01:07.2]} 25. Rxc4 {[%clk 0:00:48.7]} 25... dxc4 {[%clk 0:01:07.1]} 26.
Ne4 {[%clk 0:00:47.8]} 26... b5 {[%clk 0:01:02.4]} 27. a5 {[%clk 0:00:41.7]}
27... b4 {[%clk 0:01:02.7]} 28. Ra4 {[%clk 0:00:41]} 28... Nd5 {[%clk
0:01:02.5]} 29. Nd2 {[%clk 0:00:31.6]} 29... c3 {[%clk 0:00:34.5]} 30. Nb3
{[%clk 0:00:29.9]} 30... Kf7 {[%clk 0:00:34.9]} 31. a6 {[%clk 0:00:27]} 31...
Ke7 {[%clk 0:00:35]} 32. Ke2 {[%clk 0:00:22.7]} 32... Kd6 {[%clk 0:00:34.9]} 33.
Kd3 {[%clk 0:00:22.7]} 33... Kc7 {[%clk 0:00:35.3]} 34. Nc5 {[%clk 0:00:18.9]}
34... Kb6 {[%clk 0:00:35.1]} 35. Kc2 {[%clk 0:00:18.2]} 35... Kb5 {[%clk
0:00:33.4]} 36. Kb3 {[%clk 0:00:17]} 36... Ra7 {[%clk 0:00:32.4]} 37. Ra1 {[%clk
0:00:13.9]} 37... Nc7 {[%clk 0:00:27.5]} 38. Nd3 {[%clk 0:00:10.6]} 38... Rxa6
{[%clk 0:00:24.7]} 39. Rxa6 {[%clk 0:00:10.4]} 39... Nxa6 {[%clk 0:00:24.6]} 40.
Nxb4 {[%clk 0:00:05.8]} 40... Nxb4 {[%clk 0:00:24.2]} 41. Kxc3 {[%clk
0:00:06.7]} 41... Nd5+ {[%clk 0:00:22.5]} 42. Kb3 {[%clk 0:00:07.1]} 42... Nf4
{[%clk 0:00:21.8]} 43. g3 {[%clk 0:00:06.9]} 43... Ne2 {[%clk 0:00:21.8]} 44. f4
{[%clk 0:00:07.3]} 44... Nxd4+ {[%clk 0:00:22]} 45. Kc3 {[%clk 0:00:08.2]} 45...
Nf3 {[%clk 0:00:22]} 46. Kb3 {[%clk 0:00:08.5]} 46... Nxh2 {[%clk 0:00:21.7]}
0-1

[Event "*** SCC Grand Prix: Titled Tuesday Blitz"]
[Site "Chess.com"]
[Date "2020.09.29"]
[Round "10"]
[White "Bulldog167"]
[Black "SilviusTiberius"]
[Result "0-1"]
[WhiteElo "2782"]
[BlackElo "2657"]
[TimeControl "180+1"]
[EndTime "11:56:06 PDT"]
[Termination "SilviusTiberius won on time"]

1. e4 {[%clk 0:03:00.9]} 1... c5 {[%clk 0:02:59.3]} 2. Ke2 {[%clk 0:03:00.8]}
2... Nc6 {[%clk 0:02:58]} 3. d3 {[%clk 0:03:01.3]} 3... Nf6 {[%clk 0:02:53.9]}
4. g3 {[%clk 0:03:00.1]} 4... d5 {[%clk 0:02:41.7]} 5. f3 {[%clk 0:03:00.2]}
5... h5 {[%clk 0:02:37.9]} 6. h4 {[%clk 0:02:59.6]} 6... dxe4 {[%clk 0:02:25.9]}
7. dxe4 {[%clk 0:02:55.6]} 7... Qb6 {[%clk 0:02:19.5]} 8. c3 {[%clk 0:02:47.2]}
8... Ne5 {[%clk 0:02:02.7]} 9. Kf2 {[%clk 0:02:26.3]} 9... Be6 {[%clk
0:01:56.9]} 10. Qa4+ {[%clk 0:02:21.1]} 10... Bd7 {[%clk 0:01:56.5]} 11. Qb3
{[%clk 0:02:20.7]} 11... Qc7 {[%clk 0:01:45.6]} 12. Bf4 {[%clk 0:02:18]} 12...
O-O-O {[%clk 0:01:40.1]} 13. Nd2 {[%clk 0:02:15.5]} 13... Be6 {[%clk 0:01:18.1]}
14. Qc2 {[%clk 0:02:06.2]} 14... g6 {[%clk 0:01:06.9]} 15. Nc4 {[%clk
0:02:02.6]} 15... Nfd7 {[%clk 0:01:01.3]} 16. Ne3 {[%clk 0:01:50.7]} 16... Bh6
{[%clk 0:00:59.5]} 17. Bxh6 {[%clk 0:01:50.1]} 17... Rxh6 {[%clk 0:00:59.4]} 18.
Nh3 {[%clk 0:01:44.1]} 18... c4 {[%clk 0:00:48.3]} 19. Nf4 {[%clk 0:01:42.5]}
19... Nc5 {[%clk 0:00:41.1]} 20. Nxe6 {[%clk 0:01:34.9]} 20... fxe6 {[%clk
0:00:41.6]} 21. Nxc4 {[%clk 0:01:27.4]} 21... Ncd3+ {[%clk 0:00:38.9]} 22. Kg2
{[%clk 0:01:16.2]} 22... Qxc4 {[%clk 0:00:38.6]} 23. Rd1 {[%clk 0:01:16.9]}
23... Rhh8 {[%clk 0:00:23.6]} 24. Be2 {[%clk 0:01:13.5]} 24... Rd6 {[%clk
0:00:20]} 25. Rd2 {[%clk 0:01:13.6]} 25... Rhd8 {[%clk 0:00:19.7]} 26. Kh2
{[%clk 0:01:02]} 26... Qc5 {[%clk 0:00:19.6]} 27. Rf1 {[%clk 0:00:50.1]} 27...
Qe3 {[%clk 0:00:19.7]} 28. Rfd1 {[%clk 0:00:29.8]} 28... Qf2+ {[%clk 0:00:18]}
29. Kh3 {[%clk 0:00:28.7]} 29... Nxf3 {[%clk 0:00:16.5]} 30. Bxd3 {[%clk
0:00:26]} 30... Ng1+ {[%clk 0:00:12.6]} 31. Rxg1 {[%clk 0:00:26.3]} 31... Qxg1
{[%clk 0:00:13.5]} 32. Rg2 {[%clk 0:00:26]} 32... Qh1+ {[%clk 0:00:12.4]} 33.
Rh2 {[%clk 0:00:26.6]} 33... Qf3 {[%clk 0:00:12.9]} 34. Be2 {[%clk 0:00:25.5]}
34... Qe3 {[%clk 0:00:13.4]} 35. Bc4 {[%clk 0:00:21.2]} 35... Rd2 {[%clk
0:00:13]} 36. Bxe6+ {[%clk 0:00:17.8]} 36... Kc7 {[%clk 0:00:12.2]} 37. Rxd2
{[%clk 0:00:17.9]} 37... Rxd2 {[%clk 0:00:12.9]} 38. Qa4 {[%clk 0:00:16.9]}
38... Qe2 {[%clk 0:00:11.2]} 39. Qa5+ {[%clk 0:00:14.8]} 39... Kd6 {[%clk
0:00:10.5]} 40. Qd8+ {[%clk 0:00:04.4]} 40... Kxe6 {[%clk 0:00:10.7]} 41. Qc8+
{[%clk 0:00:02.8]} 41... Kf7 {[%clk 0:00:10.7]} 0-1

[Event "*** SCC Grand Prix: Titled Tuesday Blitz"]
[Site "Chess.com"]
[Date "2020.09.29"]
[Round "10"]
[White "RobPeresian"]
[Black "PotapovaM"]
[Result "0-1"]
[WhiteElo "2417"]
[BlackElo "2572"]
[TimeControl "180+1"]
[EndTime "11:56:06 PDT"]
[Termination "PotapovaM won on time"]

1. Nf3 {[%clk 0:02:58.1]} 1... Nf6 {[%clk 0:02:59.9]} 2. c4 {[%clk 0:02:58.2]}
2... e6 {[%clk 0:03:00.2]} 3. Nc3 {[%clk 0:02:57.7]} 3... d5 {[%clk 0:03:00.5]}
4. d4 {[%clk 0:02:56.4]} 4... Bb4 {[%clk 0:03:00.3]} 5. cxd5 {[%clk 0:02:55.8]}
5... exd5 {[%clk 0:03:00]} 6. Bg5 {[%clk 0:02:55.7]} 6... h6 {[%clk 0:03:00.2]}
7. Bh4 {[%clk 0:02:55.3]} 7... O-O {[%clk 0:02:58.8]} 8. e3 {[%clk 0:02:55.5]}
8... Bf5 {[%clk 0:02:59.4]} 9. Be2 {[%clk 0:02:54.3]} 9... c6 {[%clk 0:02:19.9]}
10. Qb3 {[%clk 0:02:52.3]} 10... Bxc3+ {[%clk 0:01:59.9]} 11. bxc3 {[%clk
0:02:45.8]} 11... g5 {[%clk 0:01:51]} 12. Qxb7 {[%clk 0:02:31.1]} 12... gxh4
{[%clk 0:01:46.6]} 13. Qxa8 {[%clk 0:02:30.3]} 13... Qc7 {[%clk 0:01:26.7]} 14.
Nxh4 {[%clk 0:02:21.7]} 14... Bh7 {[%clk 0:01:20.3]} 15. O-O {[%clk 0:01:59.9]}
15... Nbd7 {[%clk 0:01:19.8]} 16. Qxf8+ {[%clk 0:01:59.9]} 16... Nxf8 {[%clk
0:01:20.7]} 17. c4 {[%clk 0:01:57.6]} 17... Ne6 {[%clk 0:01:15.8]} 18. Rfc1
{[%clk 0:01:52.1]} 18... Qb7 {[%clk 0:01:11.9]} 19. cxd5 {[%clk 0:01:44.6]}
19... Nxd5 {[%clk 0:01:04.8]} 20. Bf3 {[%clk 0:01:29.3]} 20... Qb2 {[%clk
0:01:01.5]} 21. Bxd5 {[%clk 0:00:57]} 21... cxd5 {[%clk 0:01:02.4]} 22. Nf3
{[%clk 0:00:53.3]} 22... Ng5 {[%clk 0:01:01.2]} 23. Ne5 {[%clk 0:00:39.2]} 23...
Ne4 {[%clk 0:00:56.5]} 24. f3 {[%clk 0:00:27.6]} 24... Nc3 {[%clk 0:00:53.8]}
25. Kh1 {[%clk 0:00:23.6]} 25... f6 {[%clk 0:00:46]} 26. Nd7 {[%clk 0:00:20.5]}
26... Kf7 {[%clk 0:00:42.2]} 27. Nc5 {[%clk 0:00:16.9]} 27... h5 {[%clk
0:00:34.5]} 28. Rf1 {[%clk 0:00:14.1]} 28... h4 {[%clk 0:00:33]} 29. Rae1 {[%clk
0:00:12.5]} 29... Qd2 {[%clk 0:00:20.1]} 30. h3 {[%clk 0:00:09.3]} 30... a5
{[%clk 0:00:17.8]} 31. Kh2 {[%clk 0:00:09]} 31... Nxa2 {[%clk 0:00:15.5]} 32.
Nb3 {[%clk 0:00:06.3]} 32... Qb4 {[%clk 0:00:14.9]} 33. Nc1 {[%clk 0:00:05.6]}
33... Nxc1 {[%clk 0:00:14.4]} 34. Rxc1 {[%clk 0:00:06.5]} 34... a4 {[%clk
0:00:14.9]} 35. Rc7+ {[%clk 0:00:06.5]} 35... Kg6 {[%clk 0:00:15.3]} 36. Rfc1
{[%clk 0:00:05.9]} 36... a3 {[%clk 0:00:14.3]} 37. Ra7 {[%clk 0:00:06.1]} 37...
Qb8+ {[%clk 0:00:12.2]} 38. Rcc7 {[%clk 0:00:04.2]} 38... a2 {[%clk 0:00:12.3]}
39. f4 {[%clk 0:00:04.2]} 39... Qxc7 {[%clk 0:00:11.9]} 40. Rxc7 {[%clk
0:00:02.2]} 40... a1=Q {[%clk 0:00:11.3]} 0-1